bitfinex-derivatives/quotes_BTCF0:USTF0_20210406
["timestamp","ask_amount","ask_price","bid_price","bid_amount"]
[1617696607082,1.15821342,58699.0,58698.0,0.10725655]
[1617696607273,1.18727441,58699.0,58698.0,0.10725655]
[1617696607614,1.03619604,58699.0,58698.0,0.10725655]
[1617696608010,1.0,58707.0,58698.0,0.10725655]
[1617696608211,1.0,58708.0,58698.0,0.10725655]
[1617696608564,0.4955,58747.0,58698.0,0.10725655]
[1617696608565,1.0,58716.0,58698.0,0.10725655]
[1617696608794,1.0,58719.0,58709.0,0.10725655]
[1617696608964,0.193353,58747.0,58709.0,0.10725655]
[1617696609171,1.0,58714.0,58709.0,0.10725655]
[1617696609402,1.0,58712.0,58682.0,1.0]
[1617696609628,1.0,58710.0,58678.0,0.26414288]
[1617696609812,1.0,58702.0,58676.0,0.26413625]
[1617696610012,1.0,58692.0,58676.0,0.26413625]
[1617696610212,0.1486,58701.0,58666.0,0.26452292]
[1617696610213,1.0,58684.0,58666.0,0.26452292]
[1617696610414,0.11316,58684.0,58663.0,0.26462339]
[1617696610612,1.0,58687.0,58663.0,0.26462339]
[1617696610814,1.0,58687.0,58653.0,0.0512]
[1617696610815,0.11236,58689.0,58686.0,0.10725655]
[1617696611213,0.11236,58689.0,58667.0,0.0514]
[1617696611214,0.1113526,58689.0,58667.0,0.0514]
[1617696611512,1.0,58687.0,58646.0,0.26503274]
[1617696611712,1.0,58668.0,58646.0,0.26503274]
[1617696612012,1.0,58663.0,58647.0,0.0506]
[1617696612312,1.0,58665.0,58647.0,0.0506]
[1617696612513,1.0,58670.0,58647.0,0.0506]
[1617696612713,0.59695513,58660.0,58647.0,0.0506]
[1617696612961,1.10725655,58662.0,58633.0,1.0]
[1617696613138,1.0,58671.0,58642.0,1.0]
[1617696613413,1.0,58671.0,58618.0,3.6746]
[1617696613415,0.1486,58701.0,58618.0,3.6746]
[1617696613813,1.0,58681.0,58651.0,1.0]
[1617696614014,1.0,58676.0,58647.0,1.0]
[1617696614387,0.10441,58687.0,58639.0,0.26930601]
[1617696614593,0.10441,58687.0,58636.0,0.32316721]
[1617696614594,1.0,58665.0,58638.0,0.27014856]
[1617696614760,1.0,58661.0,58635.0,0.27033109]
[1617696615014,1.0,58659.0,58649.0,0.10725655]
[1617696615214,0.10579,58664.0,58649.0,0.10725655]
[1617696615416,1.0,58659.0,58649.0,0.10725655]
[1617696615917,0.69767249,58657.0,58649.0,0.10725655]
[1617696616118,1.0,58657.0,58649.0,0.10725655]
[1617696616416,1.0,58667.0,58649.0,0.10725655]
[1617696616616,1.0,58678.0,58649.0,1.10725655]
[1617696616816,0.10725655,58662.0,58660.0,0.02025655]
[1617696617017,0.10725655,58662.0,58633.0,5.0]
[1617696617419,0.10725655,58662.0,58632.0,5.0]
[1617696617621,0.10725655,58662.0,58661.0,1.0]
[1617696617820,0.26591655,58662.0,58641.0,1.0]
[1617696618211,0.26591655,58662.0,58625.0,1.0]
[1617696618212,1.15866,58662.0,58625.0,1.0]
[1617696618597,1.15866,58662.0,58598.0,0.27154951]
[1617696618598,0.15866,58662.0,58598.0,0.27154951]
[1617696618804,1.0,58672.0,58642.0,1.0]
[1617696619022,0.607,58738.0,58656.0,1.0]
[1617696619023,1.0,58685.0,58656.0,1.0]
[1617696619227,1.0,58686.0,58657.0,1.0]
[1617696619723,1.0,58667.0,58638.0,1.0]
[1617696619924,1.0,58666.0,58637.0,1.0]
[1617696620130,1.0,58662.0,58633.0,1.0]
[1617696620348,1.0,58673.0,58643.0,1.0]
[1617696620526,1.0,58689.0,58659.0,1.0]
[1617696620723,1.0,58693.0,58664.0,1.0]
[1617696620925,0.08515488,58717.0,58682.0,0.10725655]
[1617696620926,1.0,58695.0,58682.0,0.10725655]
[1617696621128,1.0,58699.0,58682.0,0.10725655]
[1617696621435,0.08515488,58717.0,58682.0,0.22281655]
[1617696621436,1.0,58698.0,58682.0,0.22281655]
[1617696621525,0.08515488,58717.0,58682.0,0.22281655]
[1617696621526,1.0,58708.0,58682.0,0.22281655]
[1617696621727,1.0,58709.0,58682.0,0.22281655]
[1617696621925,1.0,58704.0,58682.0,0.22281655]
[1617696622319,1.0,58704.0,58646.0,5.0]
[1617696622320,1.0,58698.0,58669.0,1.0]
[1617696622525,1.0,58689.0,58660.0,1.0]
[1617696622825,1.0,58701.0,58677.0,0.10725655]
[1617696623226,0.08515488,58717.0,58677.0,0.10725655]
[1617696623826,1.0,58706.0,58677.0,0.10725655]
[1617696624028,1.0,58703.0,58677.0,0.10725655]
[1617696624227,0.08515488,58717.0,58677.0,0.10725655]
[1617696624427,1.0,58699.0,58677.0,0.10725655]
[1617696624626,1.0,58699.0,58647.0,3.4874]
[1617696624828,0.10725655,58678.0,58675.0,0.10725655]
[1617696625684,1.0,58698.0,58675.0,0.10725655]
[1617696625832,0.08515488,58717.0,58675.0,0.10725655]
[1617696625833,1.0,58702.0,58675.0,0.10725655]
[1617696626029,1.0,58700.0,58675.0,0.10725655]
[1617696626229,0.08515488,58717.0,58675.0,0.10725655]
[1617696626531,1.0,58723.0,58694.0,1.0]
[1617696626697,0.08992807,58729.0,58688.0,0.10791]
[1617696626975,0.08992807,58729.0,58722.0,0.10725655]
[1617696628432,0.08991049,58741.0,58723.0,1.0]
[1617696628685,0.08991049,58741.0,58722.0,0.10725655]
[1617696628881,0.08991049,58741.0,47703.0,0.02945332]
[1617696628882,0.10725655,58723.0,58709.0,1.0]
[1617696629745,0.10725655,58723.0,58708.0,0.10725655]
[1617696629953,0.10725655,58723.0,58712.0,1.0]
[1617696630233,0.10725655,58723.0,58715.0,1.0]
[1617696630461,0.10725655,58723.0,58708.0,0.10725655]
[1617696630732,0.10725655,58723.0,58682.0,2.6706]
[1617696631033,0.1281,58738.0,58682.0,2.6706]
[1617696631034,1.0,58734.0,58710.0,0.10725655]
[1617696631332,1.0,58737.0,58710.0,0.10725655]
[1617696631815,0.1281,58738.0,58715.0,1.13614]
[1617696631935,0.1281,58738.0,58724.0,1.0]
[1617696632169,0.1281,58738.0,58727.0,1.0]
[1617696632374,0.1281,58738.0,58727.0,1.14903]
[1617696632777,0.1281,58738.0,58727.0,0.14903]
[1617696632971,0.10725655,58728.0,58727.0,0.14903]
[1617696633636,0.10725655,58728.0,58718.0,1.10725655]
[1617696633937,0.10725655,58728.0,58721.0,1.0]
[1617696634134,0.10725655,58728.0,58727.0,1.0]
[1617696634536,0.10725655,58728.0,58724.0,1.0]
[1617696634935,0.10725655,58728.0,58716.0,0.10725655]
[1617696635334,0.10725655,58728.0,58702.0,1.0]
[1617696635538,0.10725655,58728.0,58701.0,1.0]
[1617696635743,0.10725655,58728.0,58700.0,1.0]
[1617696635937,0.10725655,58728.0,58705.0,1.0]
[1617696636137,0.10725655,58728.0,58708.0,1.0]
[1617696636537,0.10725655,58728.0,58709.0,1.0]
[1617696636740,0.10725655,58728.0,58636.0,0.40883936]
[1617696636741,0.10725655,58728.0,58703.0,1.0]
[1617696636942,1.0,58733.0,58709.0,0.10725655]
[1617696637138,1.0,58735.0,58709.0,0.10725655]
[1617696637439,1.0,58741.0,58712.0,1.0]
[1617696637639,1.0,58737.0,58709.0,0.10725655]
[1617696638241,1.0,58734.0,58709.0,0.10725655]
[1617696638439,1.0,58737.0,58709.0,0.10725655]
[1617696638850,1.0,58744.0,58723.0,0.10725655]
[1617696639042,0.193353,58747.0,58726.0,1.0]
[1617696639544,0.193353,58747.0,58727.0,1.0]
[1617696640645,0.193353,58747.0,58728.0,1.0]
[1617696640845,0.193353,58747.0,58740.0,0.10725655]
[1617696641944,0.193353,58747.0,58744.0,1.0]
[1617696642345,0.193353,58747.0,58746.0,1.0]
[1617696642844,0.193353,58747.0,58746.0,1.10725655]
[1617696643146,0.193353,58747.0,58746.0,0.10725655]
[1617696643347,0.193353,58747.0,58746.0,1.10725655]
[1617696643946,0.193353,58747.0,58746.0,0.10725655]
[1617696644354,0.193353,58747.0,58746.0,1.10725655]
[1617696644760,0.193353,58747.0,58746.0,0.10725655]
[1617696645049,0.30060955,58747.0,58740.0,0.10725655]
[1617696645249,0.30060955,58747.0,58737.0,1.0]
[1617696645250,0.30060955,58747.0,58732.0,1.0]
[1617696645455,0.30060955,58747.0,58731.0,1.0]
[1617696645696,0.30060955,58747.0,58728.0,1.0]
[1617696645852,0.30060955,58747.0,58730.0,1.0]
[1617696646053,0.30060955,58747.0,58727.0,1.0]
[1617696646260,0.30060955,58747.0,58698.0,5.0]
[1617696646261,0.30060955,58747.0,58722.0,1.0]
[1617696646460,1.0,58746.0,58716.0,1.0]
[1617696647052,1.0,58746.0,58692.0,3.13]
[1617696647053,1.0,58746.0,58715.0,1.0]
[1617696647054,1.0,58745.0,58715.0,1.0]
[1617696647268,1.0,58738.0,58708.0,1.0]
[1617696648163,1.0,58738.0,58708.0,0.9992]
[1617696648577,0.69633172,58724.0,58708.0,0.33149308]
[1617696648958,0.10725655,58709.0,58708.0,0.33149308]
[1617696649153,0.23442655,58709.0,58689.0,0.10725655]
[1617696649358,1.23442655,58709.0,58673.0,1.0]
[1617696649653,1.23442655,58709.0,58668.0,1.0]
[1617696649855,1.93093569,58709.0,58668.0,1.0]
[1617696650054,0.69754526,58702.0,58668.0,1.0]
[1617696650853,1.0,58696.0,58667.0,1.0]
[1617696651054,1.0,58691.0,58689.0,0.10725655]
[1617696651253,1.0,58699.0,58670.0,1.0]
[1617696651655,1.69754526,58702.0,58673.0,1.0]
[1617696651954,0.69756321,58701.0,58682.0,1.0]
[1617696652355,0.69756321,58701.0,58696.0,1.0]
[1617696652559,0.69756321,58701.0,58697.0,1.0]
[1617696652769,0.87670196,58713.0,58696.0,0.11932]
[1617696652770,0.87670196,58713.0,58699.0,1.0]
[1617696653054,0.87670196,58713.0,58700.0,1.10725655]
[1617696653256,0.87670196,58713.0,58700.0,0.10725655]
[1617696653654,0.69724743,58727.0,58712.0,1.0]
[1617696653854,0.69724743,58727.0,58701.0,0.27]
[1617696654054,0.6972046,58732.0,58709.0,1.0]
[1617696654454,0.69722014,58730.0,58705.0,1.0]
[1617696654655,0.69722014,58730.0,58704.0,1.0]
[1617696654857,0.69722014,58730.0,58700.0,0.10725655]
[1617696655056,0.69726802,58727.0,58713.0,0.10725655]
[1617696655457,1.0,58737.0,58713.0,0.10725655]
[1617696655856,0.99605449,58739.0,58716.0,1.0]
[1617696656057,0.99605449,58739.0,58713.0,0.10725655]
[1617696656058,0.69723101,58729.0,58713.0,1.10725655]
[1617696656460,0.69723101,58729.0,58715.0,1.0]
[1617696656660,0.69717911,58735.0,58717.0,1.0]
[1617696656959,0.69717911,58735.0,58734.0,0.10725655]
[1617696657461,1.18928048,58747.0,58734.0,0.10725655]
[1617696657462,0.69715357,58736.0,58734.0,0.10725655]
[1617696658060,0.193353,58747.0,58734.0,0.10725655]
[1617696658061,0.69710008,58744.0,58734.0,0.10725655]
[1617696658260,0.69710008,58744.0,58734.0,1.10725655]
[1617696658461,0.89042087,58747.0,58734.0,1.10725655]
[1617696658661,0.89042087,58747.0,58735.0,1.0]
[1617696658861,0.70006397,58740.0,58735.0,1.0]
[1617696659462,0.70006397,58740.0,58698.0,0.28424503]
[1617696659678,0.70006397,58740.0,58736.0,1.0]
[1617696659928,1.07339688,58747.0,58736.0,1.0]
[1617696660115,1.07339688,58747.0,58706.0,5.0]
[1617696660116,0.1246,58740.0,58716.0,1.0]
[1617696660278,0.1246,58740.0,58712.0,1.0]
[1617696660493,0.88017836,58739.0,58712.0,1.0]
[1617696660823,0.70018238,58727.0,58710.0,1.0]
[1617696661172,0.70018238,58727.0,58726.0,0.10725655]
[1617696661764,0.70023744,58727.0,58726.0,0.10725655]
[1617696662566,0.70023744,58727.0,58726.0,0.10624977]
[1617696662963,0.87911764,58730.0,58726.0,0.10624977]
[1617696663309,0.69930839,58727.0,58726.0,0.10624977]
[1617696663665,0.69927631,58728.0,58726.0,0.10624977]
[1617696664178,0.69919945,58732.0,58726.0,0.10624977]
[1617696665167,0.10725655,58727.0,58720.0,0.10725655]
[1617696665365,0.10725655,58727.0,58711.0,1.0]
[1617696665564,1.10725655,58727.0,58697.0,1.0]
[1617696665766,0.69926452,58726.0,58697.0,1.0]
[1617696665988,1.0,58723.0,58694.0,1.0]
[1617696666210,0.69936515,58719.0,58671.0,0.28502235]
[1617696666390,1.69936515,58719.0,58689.0,1.0]
[1617696666568,0.69940806,58712.0,58686.0,1.0]
[1617696666770,0.69940806,58712.0,58684.0,1.0]
[1617696667175,0.10725655,58685.0,58672.0,1.0]
[1617696667491,0.22749655,58685.0,58660.0,0.28559085]
[1617696667634,0.22749655,58685.0,58662.0,1.0]
[1617696667869,0.22749655,58685.0,58660.0,1.0]
[1617696668120,0.22749655,58685.0,58655.0,1.0]
[1617696668121,1.0,58684.0,58655.0,1.0]
[1617696668368,1.0,58681.0,58652.0,1.0]
[1617696668569,0.22749655,58685.0,58651.0,1.0]
[1617696668570,1.0,58680.0,58651.0,1.0]
[1617696669068,0.99947816,58700.0,58641.0,0.28694151]
[1617696669069,0.5597667,58679.0,58678.0,0.10725655]
[1617696669370,0.5597095,58683.0,58678.0,0.10725655]
[1617696669607,0.5597095,58683.0,58678.0,1.10725655]
[1617696669847,0.55969475,58686.0,58678.0,0.26007655]
[1617696669997,0.55969475,58686.0,58682.0,1.0]
[1617696670169,0.55969475,58686.0,58685.0,1.0]
[1617696670373,0.55964382,58691.0,58685.0,1.0]
[1617696670771,0.87938319,58706.0,58685.0,1.0]
[1617696670772,0.55956078,58697.0,58685.0,0.27]
[1617696671071,0.8792527,58712.0,58696.0,0.10725655]
[1617696671072,0.55952157,58707.0,58696.0,0.10725655]
[1617696671272,0.55952157,58707.0,58696.0,0.25129655]
[1617696671474,0.55948288,58711.0,58696.0,1.25129655]
[1617696671673,0.55948288,58711.0,58706.0,1.0]
[1617696672101,0.55948288,58711.0,58696.0,0.10725655]
[1617696672102,0.10725655,58712.0,58696.0,0.10725655]
[1617696672103,0.10725655,58712.0,58702.0,1.0]
[1617696672105,0.66673787,58712.0,58702.0,1.0]
[1617696672592,0.66673787,58712.0,58696.0,0.10725655]
[1617696672593,0.55947786,58710.0,58700.0,1.0]
[1617696673069,0.55953363,58707.0,58689.0,1.0]
[1617696673248,0.10725655,58690.0,58672.0,1.0]
[1617696673595,0.10725655,58690.0,58657.0,0.28556024]
[1617696673596,0.10725655,58690.0,58663.0,1.0]
[1617696673793,0.10725655,58690.0,58657.0,0.28556024]
[1617696673794,1.0,58684.0,58657.0,0.28556024]
[1617696673995,1.0,58684.0,58655.0,1.0]
[1617696673997,1.11133,58684.0,58655.0,1.0]
[1617696674198,1.11133,58684.0,58654.0,1.0]
[1617696674386,1.11133,58684.0,58643.0,0.41939095]
[1617696674387,1.11133,58684.0,58647.0,1.0]
[1617696674388,1.0,58676.0,58647.0,1.0]
[1617696674695,1.0,58670.0,58645.0,0.28625243]
[1617696674888,1.14905,58670.0,58640.0,1.0]
[1617696675077,1.14905,58670.0,58651.0,0.10725655]
[1617696675078,0.14905,58670.0,58651.0,0.10725655]
[1617696675334,1.0,58669.0,58651.0,0.10725655]
[1617696675481,1.0,58668.0,58651.0,0.10725655]
[1617696675880,1.0,58652.0,58651.0,0.10725655]
[1617696676178,1.0,58670.0,58651.0,0.10725655]
[1617696676480,1.0,58663.0,58651.0,0.10725655]
[1617696676681,0.55965616,58668.0,58651.0,0.10725655]
[1617696676884,0.87940259,58683.0,58651.0,0.10725655]
[1617696676885,1.0,58665.0,58651.0,0.10725655]
[1617696677189,0.55968519,58666.0,58664.0,0.10725655]
[1617696677371,0.69955098,58672.0,58665.0,1.0]
[1617696677683,0.55960893,58674.0,58669.0,1.0]
[1617696677987,0.99922316,58694.0,58664.0,0.23357655]
[1617696677988,0.55955896,58678.0,58666.0,1.0]
[1617696678585,0.55952815,58680.0,58666.0,1.0]
[1617696678783,0.55952815,58680.0,58666.0,0.09707]
[1617696678983,0.55952815,58680.0,58672.0,1.0]
[1617696679183,0.55952815,58680.0,58679.0,0.10725655]
[1617696679384,0.55951013,58685.0,58679.0,0.21649655]
[1617696679584,0.55951013,58685.0,58679.0,1.21649655]
[1617696679985,0.55944665,58696.0,58684.0,1.0]
[1617696680530,0.14,58698.0,58693.0,1.15034]
[1617696680708,0.1904,58698.0,58695.0,6.0]
[1617696680885,0.1904,58698.0,58693.0,0.15034]
[1617696680886,0.1904,58698.0,58697.0,6.0]
[1617696681109,0.1904,58698.0,58697.0,6.10725655]
[1617696681287,0.2254,58698.0,58697.0,6.10725655]
[1617696681486,0.55924136,58722.0,58697.0,6.37725655]
[1617696681686,0.55918836,58724.0,58697.0,6.37725655]
[1617696681886,0.55918836,58724.0,58721.0,1.0]
[1617696682188,0.5591422,58729.0,58723.0,1.0]
[1617696682387,0.5591422,58729.0,58724.0,0.0516]
[1617696682723,0.55915474,58730.0,58708.0,1.0]
[1617696683149,0.55919526,58725.0,58719.0,0.10725655]
[1617696683517,0.55919526,58725.0,58720.0,0.0509]
[1617696683987,0.55926576,58721.0,58720.0,0.04989324]
[1617696684187,1.55926576,58721.0,58681.0,1.0]
[1617696684588,0.55926576,58721.0,58677.0,3.3061]
[1617696684788,0.55926576,58721.0,58678.0,1.0]
[1617696684789,0.55939425,58706.0,58678.0,1.0]
[1617696684987,1.0,58703.0,58674.0,1.0]
[1617696685187,1.0,58698.0,58669.0,1.0]
[1617696685560,1.55947895,58695.0,58666.0,1.0]
[1617696685935,1.0,58688.0,58659.0,1.0]
[1617696686516,1.0,58688.0,58658.0,1.0]
[1617696686768,1.0,58683.0,58654.0,1.0]
[1617696686989,1.0,58673.0,58649.0,0.28474595]
[1617696687190,1.10243,58673.0,58650.0,0.10725655]
[1617696687491,0.10243,58673.0,58650.0,0.10725655]
[1617696687697,0.10243,58673.0,58658.0,1.0]
[1617696688081,0.55997289,58676.0,58672.0,1.0]
[1617696688193,0.5599257,58679.0,58672.0,1.0]
[1617696688391,0.5599257,58679.0,58675.0,1.0]
[1617696688592,0.55989934,58684.0,58675.0,1.0]
[1617696688818,0.55989934,58684.0,58678.0,1.0]
[1617696689090,0.55989934,58684.0,58654.0,5.11791]
[1617696689091,0.10725655,58684.0,58683.0,1.10725655]
[1617696689290,0.10725655,58684.0,58683.0,1.0]
[1617696690594,0.10725655,58684.0,58673.0,0.12509]
[1617696690794,0.10725655,58684.0,58655.0,0.28477721]
[1617696690994,0.10725655,58684.0,58669.0,1.0]
[1617696691195,0.10725655,58670.0,58662.0,0.10725655]
[1617696692606,0.10725655,58670.0,58654.0,1.0]
[1617696692607,0.10725655,58670.0,58652.0,1.0]
[1617696692799,0.10725655,58670.0,58647.0,1.0]
[1617696693294,0.10725655,58648.0,58647.0,0.10725655]
[1617696693896,0.5600325,58667.0,58647.0,1.10725655]
[1617696694097,0.5600325,58667.0,58647.0,1.15755655]
[1617696694360,0.99997948,58688.0,58647.0,1.15755655]
[1617696694361,0.55996952,58669.0,58647.0,0.21113655]
[1617696694522,0.55996952,58669.0,58648.0,0.27]
[1617696694797,0.55991135,58681.0,58668.0,1.0]
[1617696695110,0.55991135,58681.0,58680.0,0.10725655]
[1617696695309,0.55983045,58687.0,58680.0,0.10725655]
[1617696695497,0.55983045,58687.0,58680.0,1.20646655]
[1617696695697,0.55980499,58697.0,58680.0,1.20646655]
[1617696695897,0.55980499,58697.0,58686.0,1.0]
[1617696696099,0.55980499,58697.0,58680.0,0.20646655]
[1617696696100,0.55977638,58699.0,58687.0,1.0]
[1617696696298,0.55977638,58699.0,58688.0,0.0512]
[1617696697240,0.08995261,58713.0,58688.0,0.0512]
[1617696697241,0.10725655,58689.0,58688.0,0.0512]
[1617696697429,1.10725655,58689.0,58669.0,0.10725655]
[1617696697600,0.66715541,58689.0,58649.0,0.2842334]
[1617696697999,0.55981629,58685.0,58676.0,1.0]
[1617696698200,0.55981629,58685.0,58681.0,1.0]
[1617696698400,0.55981629,58685.0,58684.0,1.0]
[1617696698701,0.6674968,58689.0,58684.0,1.0]
[1617696699200,0.10725655,58689.0,58688.0,1.25684655]
[1617696699785,0.10725655,58689.0,58688.0,0.14959]
[1617696700008,0.10725655,58689.0,58661.0,0.28370717]
[1617696700009,1.60741808,58689.0,58661.0,0.28370717]
[1617696700301,1.0,58688.0,58659.0,1.0]
[1617696700502,1.0,58676.0,58652.0,0.28427566]
[1617696700704,1.13557,58676.0,58647.0,1.0]
[1617696700901,1.0,58672.0,58645.0,0.28458124]
[1617696701304,0.50035991,58663.0,58651.0,0.10725655]
[1617696701503,0.50038246,58662.0,58651.0,0.10725655]
[1617696702103,1.0,58698.0,58651.0,0.10725655]
[1617696702104,0.50029962,58667.0,58661.0,1.15783]
[1617696702504,0.50024637,58673.0,58661.0,0.15783]
[1617696702903,0.50024637,58673.0,58666.0,1.0]
[1617696703104,0.5002255,58680.0,58667.0,1.0]
[1617696703340,0.5002255,58680.0,58669.0,0.10725655]
[1617696703607,0.09065252,58695.0,58669.0,0.10725655]
[1617696703610,0.5002546,58677.0,58669.0,0.10725655]
[1617696704104,0.50024202,58675.0,58672.0,1.0]
[1617696704303,0.50024202,58675.0,58672.0,0.12428]
[1617696704504,0.50021443,58677.0,58672.0,0.12428]
[1617696704703,0.50021443,58677.0,58674.0,1.0]
[1617696704909,0.88030138,58701.0,58676.0,1.0]
[1617696704910,0.50016363,58684.0,58676.0,1.0]
[1617696705105,0.50016363,58684.0,58667.0,1.0]
[1617696705406,0.10725655,58677.0,58665.0,1.0]
[1617696705605,0.10725655,58677.0,58663.0,1.0]
[1617696706007,0.50023908,58675.0,58662.0,1.0]
[1617696706388,1.0,58664.0,58648.0,0.28416652]
[1617696706531,0.61114908,58675.0,58648.0,0.28416652]
[1617696706807,0.50036304,58673.0,58645.0,0.2843613]
[1617696707207,0.50035572,58660.0,58653.0,1.0]
[1617696707408,0.50035572,58660.0,58654.0,1.0503]
[1617696707640,0.10725655,58662.0,58654.0,1.0503]
[1617696707812,0.10725655,58662.0,58654.0,0.0503]
[1617696708512,0.500414,58661.0,58654.0,0.0503]
[1617696709313,0.56042944,58668.0,58659.0,0.10725655]
[1617696709813,0.49985754,58663.0,58654.0,0.0503]
[1617696710012,1.0,58662.0,58654.0,0.0503]
[1617696710213,0.49987795,58657.0,58633.0,1.0]
[1617696710512,0.79934915,58675.0,58527.0,1.0]
[1617696710846,1.0,58653.0,58624.0,1.0]
[1617696711214,1.0,58652.0,58640.0,0.10725655]
[1617696711415,0.4990853,58656.0,58640.0,0.10725655]
[1617696711715,1.0,58656.0,58640.0,0.10725655]
[1617696712214,1.0,58649.0,58640.0,0.10725655]
[1617696712419,1.0,58647.0,58640.0,0.10725655]
[1617696712714,0.23177277,58665.0,58620.0,1.0]
[1617696712715,1.0,58649.0,58620.0,1.0]
[1617696713314,1.0,58649.0,58633.0,0.10725655]
[1617696713613,1.0,58649.0,58634.0,0.051]
[1617696713814,1.0,58647.0,58634.0,0.051]
[1617696714213,0.49912111,58649.0,58634.0,0.051]
[1617696714214,1.0,58646.0,58634.0,0.051]
[1617696714515,1.0,58649.0,58634.0,0.051]
[1617696714713,1.0,58647.0,58634.0,0.051]
[1617696714914,1.0,58647.0,58633.0,0.10725655]
[1617696715116,0.4991397,58647.0,58633.0,0.10725655]
[1617696715317,0.4991397,58647.0,58640.0,0.10725655]
[1617696715553,0.49912131,58650.0,58645.0,1.0]
[1617696715715,0.49912131,58650.0,58646.0,1.13491]
[1617696715917,0.49909903,58655.0,58648.0,1.0]
[1617696716417,3.4428,58666.0,58649.0,1.0]
[1617696716418,0.49908804,58658.0,58649.0,1.0]
[1617696716617,0.49908804,58658.0,58646.0,1.0]
[1617696716818,0.49908699,58657.0,58641.0,0.0511]
[1617696717318,0.10725655,58642.0,58641.0,0.0511]
[1617696717518,0.10725655,58642.0,58636.0,1.10725655]
[1617696717717,0.10725655,58642.0,58636.0,0.10725655]
[1617696718617,0.10725655,58642.0,58637.0,0.0508]
[1617696720220,0.10725655,58642.0,58636.0,0.10725655]
[1617696721420,0.10725655,58642.0,58637.0,0.0508]
[1617696722121,0.50110806,58639.0,58637.0,0.0506]
[1617696722322,0.10725655,58642.0,58636.0,0.10725655]
[1617696723023,0.60704412,58642.0,58636.0,0.10725655]
[1617696723857,0.10725655,58642.0,58636.0,0.10725655]
[1617696724237,0.10725655,58642.0,58612.0,0.28836276]
[1617696724441,0.10725655,58642.0,58513.0,1.0]
[1617696724442,0.10725655,58642.0,58608.0,0.28880444]
[1617696724727,0.10725655,58642.0,58616.0,1.0]
[1617696724926,0.10725655,58642.0,58599.0,0.09351329]
[1617696724927,0.10725655,58642.0,58614.0,1.0]
[1617696724928,0.49983914,58636.0,58614.0,1.0]
[1617696725123,0.49983914,58636.0,58617.0,0.27]
[1617696725508,0.10725655,58618.0,58612.0,1.10725655]
[1617696725736,0.10725655,58618.0,58612.0,0.10725655]
[1617696725966,3.3263,58613.0,58612.0,0.10725655]
[1617696726127,3.3263,58613.0,58600.0,0.34767035]
[1617696726128,3.3263,58613.0,58596.0,0.0514]
[1617696726129,4.42894,58613.0,58596.0,0.0514]
[1617696726731,1.0,58610.0,58596.0,0.0514]
[1617696727026,1.0,58610.0,58591.0,0.29043853]
[1617696727227,3.42894,58613.0,58586.0,0.29033938]
[1617696727429,1.0,58610.0,58586.0,0.29033938]
[1617696727628,1.0,58610.0,58585.0,0.29023707]
[1617696727828,1.0,58604.0,58585.0,0.29023707]
[1617696728330,0.50007209,58609.0,58589.0,1.0]
[1617696728528,0.50007209,58609.0,58590.0,1.0]
[1617696728728,0.50007209,58609.0,58579.0,0.29041023]
[1617696728729,0.50007209,58609.0,58598.0,1.0]
[1617696729242,0.50007209,58609.0,58579.0,0.29041023]
[1617696729243,3.3263,58613.0,58572.0,0.42584364]
[1617696729244,3.82634181,58613.0,58602.0,1.0]
[1617696729475,3.82634181,58613.0,58609.0,0.10725655]
[1617696729680,3.3263,58613.0,58609.0,0.10725655]
[1617696729830,3.3263,58613.0,58612.0,0.90925362]
[1617696730132,3.3263,58613.0,58610.0,1.0]
[1617696730330,3.3263,58613.0,58609.0,0.10725655]
[1617696730630,3.3263,58613.0,58610.0,0.0509]
[1617696731232,3.3263,58613.0,58588.0,0.2899669]
[1617696731233,3.3263,58613.0,58591.0,0.29003494]
[1617696731435,0.10725655,58606.0,58597.0,0.10725655]
[1617696732232,0.10725655,58606.0,58598.0,0.0509]
[1617696732486,0.10725655,58606.0,58583.0,0.29055225]
[1617696732635,1.10725655,58606.0,58581.0,0.0517]
[1617696732834,1.0,58603.0,58581.0,0.0517]
[1617696733076,0.50012679,58605.0,58581.0,0.0517]
[1617696733289,0.50012679,58605.0,58581.0,1.0]
[1617696733501,0.50011952,58604.0,58595.0,1.0]
[1617696733668,0.50011952,58604.0,58597.0,1.0]
[1617696733836,0.50010132,58609.0,58598.0,1.0]
[1617696734046,0.50010132,58609.0,58603.0,1.0]
[1617696734296,0.50006454,58613.0,58608.0,1.0]
[1617696734682,0.50006454,58613.0,58603.0,0.14412]
[1617696734838,0.49941797,58627.0,58603.0,0.14412]
[1617696735039,0.49941797,58627.0,58612.0,1.0]
[1617696735301,0.49940671,58629.0,58620.0,1.0]
[1617696735437,0.49940671,58629.0,58628.0,0.10725655]
[1617696735637,0.10725655,58635.0,58628.0,0.10725655]
[1617696735638,0.49939733,58633.0,58628.0,0.10725655]
[1617696735838,0.49939733,58633.0,58628.0,1.10725655]
[1617696736163,0.49939533,58634.0,58628.0,0.10725655]
[1617696736638,0.49941507,58630.0,58628.0,0.10725655]
[1617696737140,0.49941561,58629.0,58628.0,0.10725655]
[1617696737352,0.60667216,58629.0,58628.0,0.10725655]
[1617696737852,0.60667216,58629.0,58628.0,0.15795655]
[1617696738140,0.60667216,58629.0,58625.0,0.0514]
[1617696738340,0.60667216,58629.0,58610.0,1.0]
[1617696738643,0.60667216,58629.0,58603.0,1.0]
[1617696738843,0.49944907,58627.0,58603.0,1.0]
[1617696739047,0.49944907,58627.0,58604.0,1.0]
[1617696739467,0.10725655,58629.0,58620.0,0.10725655]
[1617696739667,0.10725655,58629.0,58620.0,0.20973655]
[1617696739869,0.49942499,58629.0,58620.0,0.20973655]
[1617696740143,0.49942499,58629.0,58628.0,0.998]
[1617696740351,0.69915504,58647.0,58628.0,0.998]